bitfinex/quotes_ETHUSD_20220112
["timestamp","ask_amount","ask_price","bid_price","bid_amount"]
[1641997905110,0.00227369,3366.0,3365.2,2.34313823]
[1641997905308,0.00227369,3366.0,3364.9,1.28393944]
[1641997905509,0.00227369,3366.0,3365.3,0.00170527]
[1641997905713,0.30227369,3366.0,3365.0,0.00341054]
[1641997905912,0.30227369,3366.0,3364.3,0.0073895]
[1641997905913,0.74288,3365.7,3364.3,0.0073895]
[1641997906111,1.4859935,3365.1,3364.2,0.00795793]
[1641997906314,1.4859935,3365.1,3364.1,0.00852635]
[1641997906518,0.3,3365.0,3364.7,2.09747473]
[1641997906715,0.6,3365.0,3364.7,2.09747473]
[1641997906915,0.6,3365.0,3364.8,0.00454739]
[1641997907517,0.6,3365.0,3363.8,0.01023162]
[1641997908118,2.7979052,3365.0,3364.2,2.17454055]
[1641997908320,0.3,3365.0,3363.8,0.01023162]
[1641997908518,0.3,3365.0,3364.3,0.0073895]
[1641997908769,0.3,3365.0,3363.8,2.41231958]
[1641997908971,0.74292,3365.6,3363.8,2.41231958]
[1641997909170,0.00227369,3366.0,3363.9,0.06132148]
[1641997909369,0.00227369,3366.0,3365.3,1.98758633]
[1641997909769,0.00227369,3366.0,3365.4,0.00113685]
[1641997911172,0.00227369,3366.0,3365.5,0.00972873]
[1641997911577,0.00227369,3366.0,3365.6,0.362]
[1641997911772,0.00227369,3366.0,3365.7,1.21649]
[1641997912173,0.00227369,3366.0,3365.7,0.32405508]
[1641997912840,0.00227369,3366.0,3365.4,0.00113685]
[1641997913040,0.03342341,3365.9,3365.4,0.00113685]
[1641997913241,0.00227369,3366.0,3365.4,0.00113685]
[1641997913440,0.03802168,3365.7,3365.4,0.00113685]
[1641997913643,0.00113685,3365.8,3365.4,0.00113685]
[1641997913840,1.34277,3366.1,3365.4,0.00113685]
[1641997913841,2.39481744,3366.0,3365.4,0.00113685]
[1641997914043,0.01079828,3365.9,3365.4,0.00113685]
[1641997914246,0.00227369,3366.0,3365.3,1.3837737]
[1641997914442,0.3,3366.1,3365.4,0.00113685]
[1641997914643,7.48041314,3366.8,3365.4,0.00113685]
[1641997914942,2.39769468,3366.7,3365.4,0.0022737]
[1641997915146,0.00397897,3366.7,3365.4,0.00341054]
[1641997915343,0.74264,3366.6,3365.4,0.00341054]
[1641997915541,0.02253566,3366.5,3365.4,0.00341054]
[1641997915742,0.02253566,3366.5,3365.5,2.23925555]
[1641997915743,1.48551,3366.4,3365.5,2.23925555]
[1641997915943,2.5742212,3366.3,3365.4,0.00341054]
[1641997916166,0.3,3366.2,3365.6,0.00227369]
[1641997916373,0.89245607,3365.6,3365.4,0.00341054]
[1641997916574,2.37031523,3365.5,3365.4,0.00341054]
[1641997916779,2.23531607,3365.6,3364.5,0.00852635]
[1641997916974,2.23531607,3365.6,3364.7,2.15248566]
[1641997917176,1.49245607,3365.6,3364.7,2.15248566]
[1641997917373,1.49245607,3365.6,3364.8,1.48345258]
[1641997917574,1.49245607,3365.6,3365.4,1.93091902]
[1641997917575,1.19245607,3365.6,3365.4,1.93091902]
[1641997917775,1.19245607,3365.6,3365.4,1.43091902]
[1641997917975,1.19245607,3365.6,3365.5,4.80284211]
[1641997918178,0.89245607,3365.6,3365.5,8.35846332]
[1641997918375,4.8973,3367.1,3365.6,7.35]
[1641997918775,0.74264,3366.6,3365.7,0.00170527]
[1641997919175,0.01076461,3366.1,3365.2,0.00454738]
[1641997919378,0.74264,3366.6,3365.2,0.00454738]
[1641997919577,0.01299576,3366.7,3366.1,1.25425588]
[1641997919777,0.01299576,3366.7,3365.3,0.74259]
[1641997920017,0.02887023,3366.1,3365.2,0.00454738]
[1641997920216,0.02887023,3366.1,3365.4,0.00341054]
[1641997920416,3.00113685,3366.2,3365.2,0.00454738]
[1641997921017,3.00113685,3366.2,3365.8,1.66733624]
[1641997921418,3.30113685,3366.2,3365.8,1.66733624]
[1641997921616,3.60113685,3366.2,3365.8,1.66733624]
[1641997922219,3.60113685,3366.2,3365.2,0.00454738]
[1641997922621,3.60113685,3366.2,3364.8,0.00682108]
[1641997923021,3.60113685,3366.2,3365.9,1.30760455]
[1641997923022,3.00113685,3366.2,3365.9,1.30760455]
[1641997923223,3.00113685,3366.2,3366.0,1.79156283]
[1641997923423,3.00113685,3366.2,3366.0,0.89921295]
[1641997923683,3.00113685,3366.2,3365.9,1.30760455]
[1641997923879,2.36584144,3366.1,3365.0,1.4852]
[1641997924076,0.0123883,3365.1,3364.8,0.00682108]
[1641997924277,0.00789818,3365.0,3364.7,1.0]
[1641997924476,3.36584144,3366.1,3364.9,1.82428365]
[1641997924477,0.7429,3365.2,3364.9,1.82428365]
[1641997924679,1.48586,3365.5,3364.9,1.82428365]
[1641997924875,2.2108,3366.1,3364.9,1.82428365]
[1641997924876,1.5108,3366.1,3365.0,0.00568423]
[1641997925076,3.00113685,3366.2,3365.0,0.00568423]
[1641997925277,3.00113685,3366.2,3365.1,0.01803209]
[1641997925475,3.00113685,3366.2,3365.0,0.00568423]
[1641997925677,3.00113685,3366.2,3366.1,1.70898824]
[1641997926077,3.00113685,3366.2,3366.1,3.01432954]
[1641997926475,3.00113685,3366.2,3366.1,0.76630113]
[1641997927280,7.45059997,3367.7,3366.2,7.35]
[1641997927543,3.79649997,3367.7,3366.3,0.04408342]
[1641997927728,0.00397897,3366.9,3366.3,1.04408342]
[1641997928031,0.00341054,3366.8,3366.4,1.45159808]
[1641997928330,3.79649997,3367.7,3366.5,2.00249972]
[1641997928331,0.00284212,3366.7,3366.5,2.00249972]
[1641997928528,0.00284212,3366.7,3366.6,8.0923]
[1641997928727,4.9827,3368.1,3366.8,0.01690743]
[1641997928930,0.01230138,3368.2,3366.8,3.66134636]
[1641997929132,0.00568423,3367.7,3366.9,2.22636]
[1641997929329,0.00568423,3367.7,3367.0,0.362]
[1641997929531,0.00511581,3367.6,3367.1,1.73301039]
[1641997929732,0.00511581,3367.6,3367.3,1.21482728]
[1641997929934,0.00454739,3367.5,3367.3,1.21482728]
[1641997930334,0.00397896,3367.4,3367.3,1.21482728]
[1641997930731,0.00397896,3367.4,3367.3,5.36482728]
[1641997932571,0.00397896,3367.4,3367.3,3.76482728]
[1641997932968,0.00397896,3367.4,3367.1,3.21744039]
[1641997933172,0.00397896,3367.4,3367.1,1.73301039]
[1641997933173,0.04232967,3367.3,3367.1,1.73301039]
[1641997933369,0.00341054,3367.3,3367.1,1.73301039]
[1641997933573,0.00284212,3367.2,3367.1,1.73301039]
[1641997934169,0.25284212,3367.7,3367.4,0.01476757]
[1641997934370,0.25284212,3367.7,3367.3,1.40260269]
[1641997934573,0.25568423,3367.7,3367.3,1.40260269]
[1641997934773,0.74242,3367.5,3367.3,1.40260269]
[1641997935012,1.04242,3367.5,3367.3,1.40260269]
[1641997935317,0.00113684,3367.4,3367.3,1.40260269]
[1641997935712,0.00113684,3367.4,3367.3,4.65260269]
[1641997936516,0.00113684,3367.4,3367.3,5.01460269]
[1641997936716,1.48421,3369.0,3368.3,1.31791703]
[1641997936916,5.1301,3369.1,3368.3,1.31791703]
[1641997937119,0.00682108,3368.6,3367.6,0.5]
[1641997937520,0.7423119,3368.1,3367.6,0.5]
[1641997937715,0.7423119,3368.1,3367.7,1.82961674]
[1641997937920,0.74232,3367.9,3367.7,0.93764184]
[1641997938115,0.74232,3367.9,3367.7,2.40478792]
[1641997938315,0.74232,3367.9,3367.7,1.46714608]
[1641997938316,0.0022737,3367.8,3367.7,1.46714608]
[1641997938967,0.0022737,3367.8,3367.6,0.5]
[1641997939172,0.6022737,3367.8,3367.6,0.5]
[1641997939372,0.00170527,3367.7,3367.6,0.5]
[1641997939574,0.00170527,3367.7,3366.3,2.67619118]
[1641997939575,7.35170527,3367.7,3366.3,1.31419118]
[1641997939775,0.74255,3367.3,3366.7,0.5]
[1641997939977,1.4851,3367.4,3366.7,0.5]
[1641997940176,1.00113685,3367.6,3366.8,0.00341054]
[1641997940177,0.6,3367.3,3366.8,0.00341054]
[1641997940372,0.3,3367.3,3366.8,0.00341054]
[1641997940575,1.60113685,3367.6,3366.8,0.00341054]
[1641997940774,0.7425369,3367.1,3366.8,0.00341054]
[1641997940973,0.3,3367.0,3366.8,0.00341054]
[1641997941576,1.0426,3367.0,3366.8,0.00341054]
[1641997941774,1.3426,3367.0,3366.8,0.00341054]
[1641997942833,28.9726,3367.0,3366.8,0.00341054]
[1641997943432,28.9726,3367.0,3366.6,0.00454738]
[1641997943632,28.9726,3367.0,3366.4,0.00568423]
[1641997943633,0.74253,3366.8,3366.4,0.00568423]
[1641997943835,2.8277305,3366.8,3366.4,0.00568423]
[1641997944038,0.005591,3366.7,3366.4,0.00568423]
[1641997944235,2.08511,3366.8,3366.4,0.00568423]
[1641997944835,0.742629,3366.7,3366.4,0.00568423]
[1641997945134,2.08511,3366.8,3366.4,0.00568423]
[1641997945339,1.34253,3366.8,3366.4,2.32391592]
[1641997945741,1.34253,3366.8,3366.5,0.00511581]
[1641997945938,1.34253,3366.8,3366.6,0.00443114]
[1641997946173,0.6,3366.8,3366.5,0.00511581]
[1641997946366,0.3,3366.8,3366.4,1.42996665]
[1641997946572,28.23,3367.0,3366.5,0.00113685]
[1641997946769,29.71515,3367.0,3366.5,0.00113685]
[1641997946967,0.7426198,3366.8,3366.5,0.00113685]
[1641997947167,0.00962389,3366.7,3366.4,0.00170527]
[1641997947368,0.3,3366.7,3366.4,0.00170527]
[1641997947577,2.08531,3366.7,3366.4,0.00170527]
[1641997947870,0.02234499,3366.6,3366.4,0.00170527]
[1641997948274,3.57054,3366.7,3366.4,0.00170527]
[1641997948673,0.00661021,3366.6,3366.4,0.00170527]
[1641997948873,0.74931321,3366.6,3366.4,0.00170527]
[1641997949071,0.742703,3366.6,3366.4,0.00170527]
[1641997949272,0.3,3366.5,3366.4,0.00170527]
[1641997949916,0.3,3366.5,3366.3,0.42361292]
[1641997950118,1.04271,3366.5,3366.3,0.42361292]
[1641997950518,0.3,3366.4,3366.3,0.42361292]
[1641997952727,2.9,3366.7,3366.3,0.42361292]
[1641997952924,2.9,3366.7,3366.4,0.01395545]
[1641997953127,0.00113685,3366.6,3366.3,0.42361292]
[1641997953689,0.00113685,3366.6,3366.4,1.11231973]
[1641997953874,0.00113685,3366.6,3366.4,2.59724973]
[1641997954681,0.00113685,3366.6,3366.4,1.48493]
[1641997954883,0.03070266,3366.6,3366.4,1.48493]
[1641997955082,0.03070266,3366.6,3366.3,0.42361292]
[1641997955083,0.00113685,3366.6,3366.3,0.42361292]
[1641997955283,0.00113685,3366.6,3366.4,1.18879238]
[1641997956182,0.00113685,3366.6,3366.4,0.29655131]
[1641997956380,0.74372685,3366.6,3366.4,0.29655131]
[1641997956581,0.3,3366.5,3366.4,0.29655131]
[1641997958644,0.3,3366.5,3366.4,0.24655131]
[1641997958846,0.2257389,3366.5,3366.4,0.24655131]
[1641997959843,0.2257389,3366.5,3366.0,0.74264]
[1641997959844,0.79253082,3366.2,3366.0,0.74264]
[1641997960044,0.74267,3366.2,3366.0,0.74264]
[1641997960243,1.34267,3366.2,3366.1,0.00170527]
[1641997965540,0.64570568,3366.3,3366.1,2.48948062]
[1641997965740,0.00113685,3366.6,3366.2,0.362]
[1641997965943,0.00113685,3366.6,3366.3,0.01061842]
[1641997966139,5.9127,3368.3,3366.5,1.48467]
[1641997966343,3.6855,3368.3,3367.9,1.24741034]
[1641997966644,3.6855,3368.3,3368.0,0.74219]
[1641997966645,0.74219,3368.3,3368.0,0.74219]
[1641997967240,3.9313,3368.6,3368.0,0.74219]
[1641997968450,3.9313,3368.6,3367.9,3.33287495]
[1641997968701,0.03215156,3368.1,3367.9,2.58187495]
[1641997968887,6.90735141,3368.2,3367.9,2.58187495]
[1641997969089,0.00795792,3368.0,3367.9,2.58187495]
[1641997970090,9.80735141,3368.2,3367.9,5.09149249]
[1641997970295,0.74194,3369.4,3368.0,7.35]
[1641997970496,7.9857,3370.1,3368.7,0.74187]
[1641997970695,0.00625266,3369.1,3368.7,0.74187]
[1641997971094,0.01244502,3369.8,3368.7,0.74187]
[1641997971095,0.00568424,3369.0,3368.7,0.74187]
[1641997971294,0.00568424,3369.0,3368.7,3.02078435]
[1641997971497,0.00511582,3368.9,3368.7,0.74187]
[1641997971896,0.00454739,3368.8,3368.7,0.74187]
[1641997972525,0.00454739,3368.8,3368.7,2.32187]
[1641997973124,0.30454739,3368.8,3368.7,2.32187]
[1641997973927,0.30454739,3368.8,3368.7,1.58]
[1641997974128,7.65454739,3368.8,3367.1,5.5106]
[1641997974327,1.4845636,3368.3,3367.6,0.5]
[1641997974630,0.30113685,3368.2,3367.7,0.00170527]
[1641997974826,1.08531399,3368.1,3367.7,0.00170527]
[1641997975226,0.01549828,3368.0,3367.7,0.00170527]
[1641997975429,0.3,3368.0,3367.7,0.00170527]
[1641997975629,1.34233,3368.0,3367.7,0.00170527]
[1641997975830,0.00882489,3367.9,3367.7,0.00170527]
[1641997976184,1.34233,3368.0,3367.7,0.00170527]
[1641997976681,1.34233,3368.0,3367.5,2.51044184]
[1641997976682,1.34233,3368.0,3367.6,0.00227369]
[1641997977680,0.00606625,3367.9,3367.6,0.00227369]
[1641997978082,3.4,3367.8,3367.5,0.49828414]
[1641997978282,3.4,3367.8,3367.1,1.48469]
[1641997978283,0.75108856,3367.7,3367.3,0.74239]
[1641997978584,0.75108856,3367.7,3367.1,1.48469]
[1641997978585,1.34237,3367.7,3367.2,0.00227369]
[1641997978785,1.48492,3367.6,3367.2,0.00227369]
[1641997978983,0.3,3367.5,3367.2,1.17967174]
[1641997979182,0.3,3367.5,3367.3,2.01622067]
[1641997979381,0.3,3367.5,3367.3,2.01792594]
[1641997979582,1.04246,3367.5,3367.4,0.00113685]
[1641997979784,0.74246,3367.5,3367.4,0.00113685]
[1641997980828,0.74246,3367.5,3367.3,0.00170527]
[1641997980829,1.04246,3367.5,3367.3,0.00170527]
[1641997981230,0.74246,3367.5,3367.3,0.74410527]
[1641997981430,0.74343685,3367.8,3367.3,0.74410527]
[1641997981630,0.00113685,3367.8,3367.4,3.87568067]
[1641997981831,3.7487,3368.7,3367.5,7.35]
[1641997982030,3.7487,3368.7,3367.5,8.35170527]
[1641997982228,0.00454738,3368.6,3368.5,2.08186965]
[1641997982433,0.00454738,3368.6,3368.0,1.01]
[1641997982434,0.74667738,3368.6,3368.3,1.44301556]
[1641997982630,0.74667738,3368.6,3368.3,0.5510159]
[1641997982829,0.00397896,3368.5,3368.3,0.5510159]
[1641997983232,0.00341054,3368.4,3368.3,1.2931659]
[1641997984066,0.00341054,3368.4,3368.3,0.5510159]
[1641997984067,0.30341054,3368.4,3368.3,0.5510159]
[1641997985074,0.30341054,3368.4,3368.0,4.49906814]
[1641997985075,0.02974432,3368.3,3368.0,4.49906814]
[1641997985473,0.00227369,3368.2,3368.0,4.47999106]
[1641997985872,0.00170527,3368.1,3368.0,4.47999106]
[1641997986074,0.00170527,3368.1,3368.0,2.47518292]
[1641997987274,0.00170527,3368.1,3368.0,4.58385518]
[1641997987739,0.00170527,3368.1,3368.0,7.08227228]
[1641997987936,1.2484,3369.2,3368.1,7.35]
[1641997988136,1.2484,3369.2,3368.2,7.20931541]
[1641997988137,0.89173451,3368.3,3368.2,7.20931541]
[1641997988541,0.00511581,3369.0,3368.3,7.35]
[1641997988739,0.00511581,3369.0,3368.4,2.77669655]
[1641997988938,0.00454739,3368.9,3368.5,1.14291726]
[1641997989343,0.00397896,3368.8,3368.5,2.62668726]
[1641997989542,1.1659,3370.1,3368.6,7.35]
[1641997989543,4.8558,3370.1,3368.6,7.35]
[1641997989741,4.8558,3370.1,3368.6,10.65612107]
[1641997989940,0.00454739,3369.6,3368.6,0.74302685]
[1641997990347,0.00397897,3369.5,3368.6,0.74302685]
[1641997990541,0.01642088,3369.4,3368.6,0.74302685]
[1641997990740,0.00341054,3369.4,3369.2,3.09882992]
[1641997990941,0.00284212,3369.3,3369.2,3.84074992]
[1641997991880,0.00284212,3369.3,3369.2,3.09882992]
[1641997992478,0.00284212,3369.3,3369.2,3.84073992]
[1641997993084,0.89131591,3369.9,3369.2,3.84073992]
[1641997993085,0.89131591,3369.9,3369.3,7.2]
[1641997993283,0.89131591,3369.9,3369.4,0.02516738]
[1641997993482,0.00284212,3369.8,3369.4,1.4833638]
[1641997993882,8.83029198,3370.2,3369.5,0.7416819]
[1641997993883,0.00227369,3369.7,3369.5,0.7416819]
[1641997994083,0.00227369,3369.7,3369.6,0.74169]
[1641997994284,8.83029198,3370.2,3369.6,0.74169]
[1641997994685,0.00454739,3370.1,3369.6,0.74169]
[1641997995124,0.00397896,3370.0,3369.7,0.7417094]
[1641997995427,0.00341054,3369.9,3369.8,3.86383962]
[1641997997229,9.13029198,3370.2,3369.8,3.86383962]
[1641997997436,2.96746,3371.9,3370.0,7.35]
[1641997997635,7.87402106,3373.0,3370.0,7.35]
[1641997997636,4.45638952,3373.3,3371.2,0.01203974]
[1641997997841,8.80054204,3373.8,3371.2,0.01203974]
[1641997997842,4.92365982,3373.8,3371.6,0.01253032]
[1641997998034,1.11523443,3373.7,3371.8,7.35]
[1641997998230,4.92365982,3373.8,3373.0,5.13327931]
[1641997998231,1.11523443,3373.8,3373.0,5.13327931]
[1641997998443,5.9611,3374.9,3373.2,6.82141634]
[1641997998699,0.35,3375.0,3373.3,0.362]
[1641997998890,0.00113685,3373.9,3373.3,0.00227369]
[1641997999088,0.35,3375.0,3373.4,0.00170527]
[1641997999089,0.00682108,3374.9,3373.4,0.00170527]
[1641997999288,1.48905108,3374.9,3373.1,0.00341054]
[1641997999488,1.78232998,3373.2,3373.1,0.00341054]
[1641997999695,1.16922278,3374.5,3373.1,0.00341054]
[1641997999889,1.30939424,3374.8,3373.2,0.74108]
[1641997999890,0.0841117,3374.8,3373.2,0.74108]
[1641998000093,0.00397897,3374.4,3373.2,0.75854038]
[1641998000390,0.00341054,3374.3,3374.2,2.12525699]
[1641998003932,0.02773251,3374.3,3373.9,0.74095]
[1641998004129,0.02773251,3374.3,3373.3,2.48414879]
[1641998004130,2.7178806,3374.9,3373.3,1.48426369]
[1641998004330,2.7178806,3374.9,3373.3,0.00227369]
[1641998004331,2.220687,3374.3,3373.3,0.00227369]
[1641998004530,0.01541678,3374.2,3373.4,0.00511581]
[1641998004733,0.01541678,3374.2,3372.7,2.22299]
[1641998004734,2.820687,3374.3,3372.8,0.00852635]
[1641998005130,2.520687,3374.3,3372.8,0.00852635]
[1641998005330,2.520687,3374.3,3373.9,1.85188615]
[1641998005529,2.520687,3374.3,3374.0,0.02069545]
[1641998005734,2.520687,3374.3,3374.0,0.00170527]
[1641998005933,2.520687,3374.3,3374.1,0.00113684]
[1641998006165,0.00216816,3374.2,3373.2,0.00625266]
[1641998006766,0.00216816,3374.2,3373.5,1.48189]
[1641998007069,0.00216816,3374.2,3373.6,0.00397896]
[1641998007470,0.00216816,3374.2,3373.6,2.06639858]
[1641998007871,0.00216816,3374.2,3373.7,0.00341054]
[1641998008070,0.00216816,3374.2,3373.8,0.03839686]
[1641998008476,2.7199606,3374.2,3373.9,0.00227369]
[1641998008674,0.00216816,3374.2,3373.9,0.00227369]
[1641998008876,2.62068706,3374.2,3373.9,0.00227369]
[1641998009074,0.00216816,3374.2,3373.7,0.08662298]
[1641998009573,0.00216816,3374.2,3373.8,0.00284212]
[1641998010020,2.74234888,3374.2,3373.8,0.00284212]
[1641998010222,1.0,3374.1,3373.8,0.00284212]
[1641998010428,1.25,3374.1,3373.8,0.00284212]
[1641998010635,5.76274523,3373.9,3373.8,0.00284212]
[1641998011026,6.06274523,3373.9,3373.8,0.00284212]
[1641998011427,7.06274523,3373.9,3373.8,0.00284212]
[1641998011626,2.66274523,3373.9,3373.8,0.00284212]
[1641998012027,1.3,3373.9,3373.8,0.00284212]
[1641998012230,1.6,3373.9,3373.8,0.00284212]
[1641998012427,0.6,3373.9,3373.8,0.00284212]
[1641998012628,1.0,3373.9,3373.8,0.00284212]
[1641998013031,0.6,3374.0,3373.8,0.00284212]
[1641998013032,1.95093396,3374.0,3373.8,0.00284212]
[1641998013681,1.95093396,3374.0,3373.7,2.69832726]
[1641998014082,1.95093396,3374.0,3373.8,0.08675104]
[1641998014782,3.83444454,3374.0,3373.8,0.08675104]
[1641998015184,1.0,3373.9,3373.8,0.08675104]
[1641998015992,1.0,3373.9,3373.7,2.69832726]
[1641998016888,1.0,3373.9,3372.4,1.4822959]
[1641998017090,5.09701227,3373.9,3372.2,1.48243]
[1641998017293,5.09701227,3373.9,3372.5,0.0073895]
[1641998017294,0.0128873,3373.6,3372.5,0.0073895]
[1641998017527,0.3,3373.4,3372.5,0.0073895]
[1641998017726,0.3,3373.4,3371.4,2.6728738]
[1641998017727,0.3,3373.4,3371.4,1.49644176]
[1641998017923,1.44204613,3372.3,3371.8,2.01032896]
[1641998018126,1.44204613,3372.3,3371.5,0.01307373]
[1641998018127,2.04204613,3372.3,3371.5,0.01307373]
[1641998018336,2.04204613,3372.3,3371.9,0.01080004]
[1641998018527,3.04204613,3372.3,3371.5,0.01307373]
[1641998018928,0.02365393,3372.2,3371.5,0.01307373]
[1641998019127,3.05482387,3372.3,3371.5,0.01307373]
[1641998019330,0.6,3371.8,3371.5,0.01307373]
[1641998019526,1.0,3372.2,3371.3,0.01421058]
[1641998019726,1.0,3372.2,3371.4,0.01364216]
[1641998019926,2.05482387,3372.3,3371.2,0.01477901]
[1641998020125,2.05482387,3372.3,3371.1,0.01534743]
[1641998020529,2.8907225,3371.7,3371.1,0.01534743]
[1641998020728,1.24375145,3371.7,3371.1,0.01534743]
[1641998020926,1.84375145,3371.7,3371.1,0.01534743]
[1641998022072,2.86365145,3371.7,3371.1,0.01534743]
[1641998022271,0.01831095,3371.6,3371.1,0.01534743]
[1641998022475,1.0,3371.6,3371.1,0.01534743]
[1641998023073,1.84375145,3371.7,3371.1,0.01534743]
[1641998023476,0.6,3371.4,3371.2,0.0290053]
[1641998023677,1.84375145,3371.7,3371.1,0.01534743]
[1641998023874,1.84375145,3371.7,3371.3,0.01421058]
[1641998024075,0.01347968,3371.5,3371.1,0.01534743]
[1641998024475,0.00768694,3371.4,3371.1,0.01534743]
[1641998024926,0.01347968,3371.5,3371.1,0.01534743]
[1641998025320,0.01347968,3371.5,3371.0,20.0]
[1641998025321,7.35,3371.3,3371.0,15.34463137]
[1641998025519,8.34940137,3371.1,3371.0,15.34463137]
[1641998025918,8.65,3371.1,3371.0,15.34463137]
[1641998026119,12.21001776,3371.1,3371.0,15.34463137]
[1641998026321,12.21001776,3371.1,3371.0,14.34523]
[1641998026719,12.21001776,3371.1,3371.0,12.35336563]
[1641998026919,4.86001776,3371.1,3371.0,12.35336563]
[1641998027119,4.86001776,3371.1,3371.0,12.12036563]
[1641998027320,0.00170527,3371.4,3371.0,12.12036563]
[1641998027524,0.00170527,3371.4,3371.1,0.03359395]
[1641998027723,0.00113685,3371.3,3371.0,12.86191753]
[1641998027921,0.00113685,3371.3,3371.1,0.00564761]
[1641998028122,0.00170527,3371.4,3371.1,0.00564761]
[1641998028325,0.00170527,3371.4,3371.1,1.96515065]
[1641998028523,0.00113685,3371.3,3371.1,0.63015065]
[1641998028979,0.0134576,3371.2,3371.1,0.63015065]
[1641998029578,0.0134576,3371.2,3371.1,3.48015065]
[1641998029983,0.0007576,3371.2,3371.1,3.48015065]
[1641998030584,0.00170527,3371.4,3371.2,7.35]
[1641998030785,0.00170527,3371.4,3371.3,11.11666677]
[1641998030983,0.77454459,3372.8,3371.9,1.4825026]
[1641998031495,0.06126927,3372.7,3371.1,3.23625248]
[1641998031683,0.00739478,3372.7,3371.2,1.0]
[1641998031882,0.00682635,3372.6,3371.4,1.48281]
[1641998032083,0.00682635,3372.6,3371.5,1.87957268]
[1641998032084,2.25927711,3372.2,3371.5,1.87957268]
[1641998032286,2.25927711,3372.2,3371.7,0.74143]
[1641998032531,0.00398424,3372.1,3371.7,0.74143]
[1641998032733,0.00398424,3372.1,3371.8,0.03042276]
[1641998032931,0.00341581,3372.0,3371.7,0.74143]
[1641998033131,0.00341581,3372.0,3371.5,1.87957268]
[1641998033335,0.77454459,3372.8,3371.5,1.87957268]
[1641998033336,0.89081335,3371.8,3371.5,1.87957268]
[1641998033532,1.49081335,3371.8,3371.5,1.87957268]
[1641998033733,0.00171054,3371.7,3371.5,1.87957268]
[1641998034036,0.00114212,3371.6,3371.2,1.48406158]
[1641998034432,0.00171054,3371.7,3371.3,0.02023525]
[1641998034732,0.00114212,3371.6,3371.2,1.48406158]
[1641998035134,0.00284739,3371.9,3371.5,1.81416583]
[1641998035334,0.30284739,3371.9,3371.6,0.01530368]
[1641998035536,0.00227897,3371.8,3371.4,0.74148]
[1641998035744,0.01144733,3371.7,3371.2,0.00113158]
[1641998035937,0.00171054,3371.7,3371.2,0.00113158]
[1641998036171,1.0605,3371.8,3371.1,0.0017]
[1641998036172,0.00114212,3371.6,3371.1,0.0017]
[1641998036580,0.00171054,3371.7,3371.4,1.73345345]
[1641998036774,0.00171054,3371.7,3371.4,0.87859685]
[1641998036974,0.00114212,3371.6,3371.4,0.87859685]
[1641998037374,0.09056632,3371.7,3371.4,0.87859685]
[1641998037575,0.00171054,3371.7,3371.4,0.87859685]
[1641998037776,0.00114212,3371.6,3371.4,0.87859685]
[1641998038076,27.93,3371.9,3371.1,0.98920862]
[1641998038077,0.00171054,3371.7,3371.1,0.98920862]
[1641998038477,0.00284212,3371.6,3371.1,0.98920862]
[1641998038678,0.00284212,3371.6,3371.4,1.48282]
[1641998038879,0.0022737,3371.5,3371.4,1.48282]
[1641998039482,0.0022737,3371.5,3371.4,2.9655762]
[1641998040132,27.63,3371.9,3371.6,7.35]
[1641998040329,22.8289,3371.9,3371.7,2.89868497]
[1641998040527,22.8289,3371.9,3371.8,9.44759292]
[1641998040833,16.90181369,3371.9,3371.8,9.44759292]
[1641998041328,16.90181369,3371.9,3371.8,8.35]
[1641998041731,10.97237369,3371.9,3371.8,8.35]
[1641998041929,0.89060946,3372.6,3371.9,7.35]
[1641998042130,0.89060946,3372.6,3372.3,0.74112]
[1641998042331,5.4259,3373.7,3372.5,7.35]
[1641998042535,2.81744787,3374.1,3372.3,2.9641374]
[1641998042733,2.81744787,3374.1,3372.1,1.48223]
[1641998042734,1.99283201,3373.3,3372.1,1.48223]
[1641998042935,1.99283201,3373.3,3371.7,5.875]
[1641998042936,2.77715131,3373.2,3371.7,5.875]
[1641998043134,2.77715131,3373.2,3371.1,6.5845]
[1641998043135,2.86795666,3373.2,3372.2,0.00170527]
[1641998043336,0.00341054,3373.1,3372.2,0.00170527]
[1641998043538,0.36541054,3373.1,3371.5,0.00568423]
[1641998043770,0.36541054,3373.1,3371.8,0.00397896]
[1641998043771,1.65600722,3372.0,3371.8,0.00397896]
[1641998043968,1.3859047,3372.1,3371.2,2.14065731]
[1641998044170,0.3,3372.0,3371.3,0.00682108]
[1641998044570,1.9859047,3372.1,3371.3,0.00682108]
[1641998044768,0.89092945,3371.4,3371.2,1.48289]
[1641998045169,1.49092945,3371.4,3371.3,6.10682108]
[1641998045568,0.6,3371.4,3371.3,6.1]
[1641998045773,5.9807,3372.7,3371.9,1.48259]
[1641998045981,3.943,3373.1,3371.9,1.48259]
[1641998046173,0.01188596,3373.2,3372.3,0.74124]
[1641998046174,0.0073895,3372.6,3372.3,0.74124]
[1641998046475,0.01188596,3373.2,3372.3,0.74124]
[1641998046476,0.00682108,3372.5,3372.4,2.11397432]
[1641998046877,0.00682108,3372.5,3372.3,2.223591]
[1641998047273,0.00625266,3372.4,3372.3,2.223591]
[1641998047533,0.01023162,3373.1,3372.3,2.223591]
[1641998047732,0.00625266,3372.4,3372.3,0.74124]
[1641998047935,0.0096632,3373.0,3372.3,0.74124]
[1641998048133,0.00625266,3372.4,3372.3,2.66373859]
[1641998048334,0.00909477,3372.9,3372.3,2.66373859]
[1641998048646,0.00852635,3372.8,3372.3,2.66373859]
[1641998048834,0.00852635,3372.8,3372.3,1.77299654]
[1641998049035,0.01177987,3372.4,3372.3,1.80242162]
[1641998049438,3.19414617,3374.0,3372.3,7.94366162]
[1641998049635,2.02801067,3374.0,3373.3,1.85106748]
[1641998049936,7.2666,3374.6,3373.3,1.85106748]
[1641998050235,2.70842934,3374.5,3373.3,1.85106748]
[1641998050437,2.6964757,3374.5,3373.3,1.85106748]
[1641998050634,1.45287773,3374.1,3373.3,1.85106748]
[1641998050836,0.05826671,3373.8,3372.7,1.48226]
[1641998051285,2.22707699,3374.1,3372.7,1.48226]
[1641998051286,0.0073895,3373.7,3372.7,1.48226]
[1641998051481,0.0073895,3373.7,3372.9,0.74098]
[1641998051680,0.00216228,3373.9,3372.9,0.74098]
[1641998051681,0.00682108,3373.6,3372.9,0.74098]
[1641998051880,0.00682108,3373.6,3373.0,1.82650535]
[1641998052085,0.00625265,3373.5,3373.3,0.74097]
[1641998052481,0.00568423,3373.4,3373.3,0.74097]
[1641998052680,0.00568423,3373.4,3373.2,2.07325889]
[1641998053081,0.00511581,3373.3,3373.2,2.07325889]
[1641998053282,0.00511581,3373.3,3373.2,1.48194]
[1641998053684,0.00511581,3373.3,3373.1,0.74095]